[Event "44th Chess Olympiad Open 2022"]
[Site "Chennai"]
[Date "2022.07.29"]
[Round "1.18"]
[White "Hracek, Zbynek"]
[Black "Fellman, Mike"]
[Result "1-0"]
[WhiteElo "2555"]
[BlackElo "2107"]
[Annotator "TA"]
[PlyCount "77"]
[EventDate "2022.??.??"]
[TimeControl "60"]

{[%evp 15,77,12,27,0,47,42,39,26,58,53,47,52,72,56,57,73,80,63,88,73,75,74,80,
70,120,133,172,172,249,234,282,269,340,255,245,239,234,239,281,199,198,200,191,
202,204,193,197,134,133,133,134,120,118,120,194,191,193,226,211,125,118,0,719,
715]} 1. e4 {[%emt 0:00:01]} c5 {[%emt 0:00:05]} 2. Nf3 {[%emt 0:00:05]} d6 {
[%emt 0:00:05]} 3. d4 {[%emt 0:00:03]} Nf6 {[%emt 0:00:06]} 4. Nc3 {[%emt 0:00:
00]} cxd4 {[%emt 0:00:05]} 5. Nxd4 {[%emt 0:00:20]} a6 {[%emt 0:00:16]} 6. Be3
{[%emt 0:03:53]} e5 {[%emt 0:00:26]} 7. Nf3 {[%emt 0:00:04]} Be7 {[%emt 0:00:
00]} 8. Bc4 {[%emt 0:02:14]} Be6 {[%emt 0:04:18]} 9. Bb3 {[%emt 0:10:21] The
main line 9.Bb3 scores better than 9.Bxe6. B90: Sicilian Najdorf: Unusual
White 6th moves, 6 Be3 Ng4 and 6 Be3 e5.} Bxb3 {[%emt 0:06:52]} (9... O-O $11)
10. axb3 {[%emt 0:00:13]} Nbd7 {[%emt 0:01:12] [#]} 11. Bg5 $146 {[%emt 0:00:
00] White is slightly better.} ({Predecessor:} 11. b4 Ng4 12. Nd5 Nxe3 13. Nxe3
Nf6 14. O-O Qb6 15. Qe1 Qc6 16. Nd2 Nxe4 17. Nxe4 Qxe4 {½-½ (24) Nielsen,
S-Roerholt,C Esbjerg 2005}) 11... Rc8 {[%emt 0:07:16]} 12. O-O {[%emt 0:03:48]}
O-O {[%emt 0:03:17]} 13. Re1 {[%emt 0:12:20]} Ne8 {[%emt 0:32:56]} 14. Be3 {
[%emt 0:02:27]} Nef6 {[%emt 0:07:46]} 15. Nd2 {[%emt 0:10:09][%cal Yf3d2,Yd2f1,
Yf1g3,Yg3f5]} h6 {[%emt 0:03:01]} 16. Nf1 {[%emt 0:04:01]} Qc7 {[%emt 0:01:56]}
17. Ng3 {[%emt 0:01:20]} Rfd8 {[%emt 0:00:36]} 18. Nf5 {[%emt 0:02:41]} Bf8 {
[%emt 0:00:11]} 19. Qf3 {[%emt 0:00:08] White is much more active.} Qc6 {
[%emt 0:08:38]} (19... Re8 $14) 20. Rad1 $16 {[%emt 0:04:28]} Kh7 {[%emt 0:03:
23] [#]} 21. g4 $1 {[%emt 0:07:00][%cal Yg2g4,Yg4g5]} Ng8 {[%emt 0:09:59]} (
21... Re8 {was called for.} 22. h4 (22. g5 hxg5 23. Bxg5 Kg8 $18) 22... Nc5)
22. g5 $18 {[%emt 0:07:23]} g6 {[%emt 0:01:45]} 23. Nh4 {[%emt 0:02:34]} (23.
Nxd6 Bxd6 24. Qxf7+ Kh8 $16) 23... f5 {[%emt 0:02:00]} 24. exf5 {[%emt 0:11:26]
} Qxf3 {[%emt 0:00:07]} 25. fxg6+ {[%emt 0:00:02]} ({Less strong is} 25. Nxf3
gxf5 26. gxh6 Re8 $16) 25... Kg7 {[%emt 0:00:06]} 26. Nxf3 {[%emt 0:00:18]}
Kxg6 {[%emt 0:00:25]} 27. Nh4+ {[%emt 0:00:52]} Kh5 {[%emt 0:01:16]} 28. Nf5 {
[%emt 0:00:05]} hxg5 {[%emt 0:01:52]} 29. Nxd6 {[%emt 0:00:11]} Bxd6 {[%emt 0:
00:09]} 30. Rxd6 {[%emt 0:00:03] Ne4 is the strong threat.} Ndf6 {[%emt 0:00:
28] Inhibits Ne4.} 31. Red1 {[%emt 0:02:11]} ({White should play} 31. Rb6 $18)
31... Rxd6 $16 {[%emt 0:00:14]} 32. Rxd6 {[%emt 0:00:02]} Kg4 {[%emt 0:00:28]}
33. Kg2 {[%emt 0:01:24]} Kf5 {[%emt 0:00:00]} 34. Bb6 {[%emt 0:04:13]} Ne7 {
[%emt 0:00:41]} (34... Nh6 $16 {is a better defense.}) 35. Bd8 $18 {[%emt 0:00:
39]} Neg8 {[%emt 0:00:18] [#]} 36. Nd1 $1 {[%emt 0:01:39] Black must now
prevent Ne3+.} e4 {[%emt 0:00:14]} 37. Bxf6 {[%emt 0:00:32]} (37. Ne3+ $18 Ke5
38. Rd2) 37... Nxf6 $16 {[%emt 0:00:01]} 38. Rb6 {[%emt 0:00:08]} (38. Ne3+ $16
Ke5 39. Rb6) 38... Rc7 $2 {[%emt 0:01:04]} (38... Nd5 $11 39. Rxb7 Rxc2) 39.
Ne3+ {[%emt 0:00:04] Weighted Error Value: White=0.17 (very precise) /Black=0.
23 (precise)} 1-0

[Event "44th Chess Olympiad Open 2022"]
[Site "Chennai"]
[Date "2022.07.29"]
[Round "1.18"]
[White "Zilleruelo Irizarry, Diego"]
[Black "Michalik, Peter"]
[Result "1/2-1/2"]
[WhiteElo "2081"]
[BlackElo "2559"]
[Annotator "TA"]
[PlyCount "90"]
[EventDate "2022.??.??"]
[TimeControl "60"]

{[%evp 11,90,10,23,8,6,0,2,7,12,15,20,6,30,-2,22,25,25,10,20,21,14,26,47,44,48,
22,59,33,29,41,79,79,74,93,106,61,64,50,93,43,40,0,0,0,0,0,0,0,0,0,0,0,0,0,0,0,
0,0,0,0,0,0,0,0,0,0,0,0,0,0,0,0,0,0,0,0,0,0,0,0,0]} 1. e4 {[%emt 0:00:03]} c6 {
[%emt 0:00:10]} 2. d4 {[%emt 0:00:04]} d5 {[%emt 0:00:04]} 3. exd5 {[%emt 0:00:
00]} cxd5 {[%emt 0:00:05]} 4. Bd3 {[%emt 0:00:09]} Nc6 {[%emt 0:00:07]} 5. c3 {
[%emt 0:00:02]} Qc7 {[%emt 0:00:08]} 6. h3 {[%emt 0:00:12]} g6 {[%emt 0:01:42]}
7. Nf3 {[%emt 0:00:27] B13: Caro-Kann: Exchange Variation and Panov-Botvinnik
Attack.} Bf5 {[%emt 0:00:40]} 8. Be3 {[%emt 0:01:57] [#] 8.Be2 is setting a
new trend.} e6 $146 {[%emt 0:02:49]} ({Predecessor:} 8... Nf6 9. O-O Bg7 10.
Re1 Bxd3 11. Qxd3 O-O 12. Nbd2 Rfc8 13. Rad1 b5 14. Ne5 Qb7 15. Nb3 a6 16. Nc5
Qa7 17. c4 e6 {½-½ (17) Valet,R (2048)-Wuttke,H (2203) Germany 2012}) 9. O-O
{[%emt 0:02:29]} h5 {[%emt 0:01:51]} 10. Re1 {[%emt 0:06:04]} Nf6 {[%emt 0:00:
00]} 11. Ne5 {[%emt 0:04:21]} Bd6 {[%emt 0:05:39]} 12. Bb5 {[%emt 0:06:07]} Nd7
{[%emt 0:06:14]} 13. Nxd7 {[%emt 0:00:46]} Qxd7 {[%emt 0:00:07]} 14. Bg5 {
[%emt 0:01:43]} Be7 {[%emt 0:06:17] Inhibits Bf6.} (14... O-O {with more
complications.} 15. Bf6 Be7 16. Be5 h4) 15. Bxe7 {[%emt 0:02:28]} Qxe7 {
[%emt 0:00:05]} 16. Nd2 {[%emt 0:03:01]} g5 {[%emt 0:04:08]} 17. Qa4 {[%emt 0:
00:00]} Qd6 {[%emt 0:16:17]} 18. Re3 {[%emt 0:04:58]} (18. Nb3 {is interesting.
} Ke7 19. Nc5 a6 20. Bd3) 18... O-O {[%emt 0:01:55]} (18... Ke7 {is more
complex.} 19. Nf3 g4 20. Ne5 Nxe5 21. dxe5 Qc5) 19. Bxc6 {[%emt 0:01:31]} bxc6
{[%emt 0:00:49]} 20. Qd1 {[%emt 0:00:16]} Bg6 {[%emt 0:00:39]} 21. Qe2 {
[%emt 0:02:04]} Rfe8 {[%emt 0:04:34]} 22. Re1 {[%emt 0:00:59]} Rab8 {[%emt 0:
00:00]} 23. b4 {[%emt 0:03:39]} a5 {[%emt 0:00:34]} 24. a3 {[%emt 0:00:14]} ({
Reject} 24. bxa5 Rb2 $11) 24... axb4 {[%emt 0:00:12]} 25. axb4 {[%emt 0:00:01]}
({Better is} 25. cxb4 $16 Ra8 26. Nf3) 25... Ra8 $14 {[%emt 0:04:06]} 26. Nf3 {
[%emt 0:03:36]} f6 {[%emt 0:01:29] The position is equal.} 27. Rxe6 {[%emt 0:
00:00]} Rxe6 {[%emt 0:00:21]} 28. Qxe6+ {[%emt 0:00:06]} Qxe6 {[%emt 0:00:04]}
29. Rxe6 $11 {[%emt 0:00:05] Endgame KRB-KRN} Kf7 {[%emt 0:02:55]} 30. Rxc6 {
[%emt 0:00:35]} Ra1+ {[%emt 0:00:05]} 31. Kh2 {[%emt 0:00:15]} Ra2 {[%emt 0:00:
10]} 32. c4 {[%emt 0:25:56]} dxc4 {[%emt 0:02:05]} 33. Rxc4 {[%emt 0:01:51]}
Be4 {[%emt 0:00:29]} 34. Kg1 {[%emt 0:02:12]} Ra1+ {[%emt 0:00:00]} 35. Kh2 {
[%emt 0:00:03]} Ra2 {[%emt 0:00:09] Inhibits Nd2.} 36. Kg1 {[%emt 0:00:50]} Rb2
{[%emt 0:03:02]} 37. Rc1 {[%emt 0:06:08]} Rxb4 {[%emt 0:00:00]} 38. Rd1 {
[%emt 0:00:02]} Ke6 {[%emt 0:05:25]} 39. Nh2 {[%emt 0:05:44]} Bc2 {[%emt 0:01:
13]} 40. Re1+ {[%emt 0:00:10]} Kf7 {[%emt 0:01:19]} 41. Rc1 {[%emt 0:30:15]}
Ba4 {[%emt 0:31:13]} 42. Nf3 {[%emt 0:03:02]} Ke6 {[%emt 0:00:00]} 43. h4 {
[%emt 0:01:59]} g4 {[%emt 0:03:29]} 44. Nh2 {[%emt 0:00:03]} f5 {[%emt 0:00:28]
} 45. g3 {[%emt 0:00:24]} Rxd4 {[%emt 0:09:51] Weighted Error Value: White=0.
05 (flawless) /Black=0.07 (flawless)} 1/2-1/2

[Event "44th Chess Olympiad Open 2022"]
[Site "Chennai"]
[Date "2022.07.29"]
[Round "1.18"]
[White "Rodriguez Santiago, Jaime"]
[Black "Nguyen, Thai Dai Van"]
[Result "0-1"]
[WhiteElo "2067"]
[BlackElo "2629"]
[Annotator "TA"]
[PlyCount "64"]
[EventDate "2022.??.??"]
[TimeControl "60"]

{[%evp 9,64,10,17,12,20,0,0,0,15,-2,-2,-3,0,0,0,-22,-3,-33,0,-81,-72,-72,-70,
-123,-120,-367,-357,-358,-360,-345,-299,-405,-411,-487,-389,-354,-362,-446,
-437,-612,-582,-1049,-916,-1086,-919,-2919,-1304,-2507,-1310,-1123,-1147,-1057,
-920,-12835,-12835,-29988,-29989]} 1. c4 {[%emt 0:00:03]} e5 {[%emt 0:01:05]}
2. Nc3 {[%emt 0:00:05]} Nf6 {[%emt 0:04:04]} 3. Nf3 {[%emt 0:00:09]} Nc6 {
[%emt 0:00:09]} 4. e3 {[%emt 0:00:04]} Be7 {[%emt 0:01:46]} 5. d4 {[%emt 0:00:
00]} exd4 {[%emt 0:00:15]} 6. exd4 {[%emt 0:00:39] A28: English Opening: Four
Knights Variation.} d5 {[%emt 0:00:54]} 7. cxd5 {[%emt 0:02:52]} Nxd5 {[%emt 0:
00:00]} 8. Bb5 {[%emt 0:00:09] The position is equal.} O-O {[%emt 0:03:31]} 9.
Bxc6 {[%emt 0:06:54]} bxc6 {[%emt 0:00:09]} 10. O-O $1 {[%emt 0:00:10]} Bg4 {
[%emt 0:09:46]} 11. h3 {[%emt 0:03:07]} Bh5 {[%emt 0:01:19] [#]} 12. Re1 $146 {
[%emt 0:00:41]} ({Predecessor:} 12. g4 Bg6 13. Ne5 Nxc3 14. bxc3 Bd6 15. Re1
Qh4 16. Kg2 Bxe5 17. Rxe5 f5 {1-0 (37) Zabala,F (1955)-Acevedo Del Rio,A (1835)
Medellin 2016}) 12... Bf6 {[%emt 0:07:14]} 13. Be3 {[%emt 0:11:09]} Rb8 {
[%emt 0:04:04]} 14. Na4 {[%emt 0:04:15]} (14. Nxd5 $11 {keeps the balance.}
Qxd5 15. b3) 14... Re8 {[%emt 0:10:26][%cal Yf8e8,Ye8e7,Ye7e3]} 15. Rc1 {
[%emt 0:02:24]} Qd6 {[%emt 0:04:02]} 16. a3 {[%emt 0:08:52] [#]} ({White
should play} 16. b3 $15) 16... Re7 $1 $17 {[%emt 0:07:48] Strongly threatening
...Rbe8. Black is more active.} 17. g4 $2 {[%emt 0:11:52] This costs White the
game.} (17. Nc5 $17) 17... Nxe3 $19 {[%emt 0:03:14]} ({Stronger than} 17... Bg6
18. Bd2 $15) 18. Rxe3 {[%emt 0:04:07]} Rxe3 {[%emt 0:00:00]} 19. gxh5 {[%emt 0:
00:13]} Re7 {[%emt 0:02:26]} 20. h6 {[%emt 0:01:38]} gxh6 {[%emt 0:00:37]} 21.
Qd2 {[%emt 0:02:10]} Bg5 {[%emt 0:04:25]} 22. Nxg5 {[%emt 0:00:51]} hxg5 {
[%emt 0:00:02]} 23. Rc5 {[%emt 0:00:11]} h6 {[%emt 0:00:00]} 24. d5 {[%emt 0:
08:30]} (24. Nc3 $142) 24... Rd8 {[%emt 0:04:25][%cal Rc6d5]} 25. Qc2 {[%emt 0:
02:13]} cxd5 {[%emt 0:02:12][%cal Yc6d5,Yd5e4,Ye4e3] ( -> ...Re1+)} 26. Rc6 {
[%emt 0:01:51]} Qf4 {[%emt 0:00:14]} 27. Rxh6 {[%emt 0:02:48]} Re1+ {[%emt 0:
00:10]} 28. Kg2 {[%emt 0:00:03]} Qe4+ {[%emt 0:00:00]} 29. Qxe4 {[%emt 0:00:04]
} dxe4 {[%emt 0:00:52]} 30. Nc3 {[%emt 0:00:20] Inhibits Rdd1.} Rd2 {[%emt 0:
00:56]} 31. b4 {[%emt 0:01:23]} e3 {[%emt 0:00:48]} 32. Ne4 {[%emt 0:00:28] [#]
} f5 $1 {[%emt 0:02:53] Weighted Error Value: White=1.04/Black=0.34} 0-1

[Event "44th Chess Olympiad Open 2022"]
[Site "Chennai"]
[Date "2022.07.29"]
[Round "1.19"]
[White "Berkes, Ferenc"]
[Black "Alahakoon, Isuru"]
[Result "1-0"]
[WhiteElo "2649"]
[BlackElo "2000"]
[Annotator "TA"]
[PlyCount "91"]
[EventDate "2022.??.??"]
[TimeControl "60"]

{[%evp 13,91,17,24,22,19,23,27,14,14,15,20,27,11,13,18,18,67,72,140,140,140,66,
70,75,69,77,63,63,70,77,114,119,113,105,145,141,163,165,170,182,208,185,192,
193,228,228,231,228,327,323,301,319,320,314,298,279,308,333,435,420,436,435,
485,485,585,589,576,557,708,704,1194,1213,1194,1173,1118,1068,1036,1025,5330,
1263]} 1. d4 {[%emt 1:31:00]} d5 {[%emt 0:00:21]} 2. c4 {[%emt 0:00:00]} e6 {
[%emt 0:00:30]} 3. Nc3 {[%emt 0:00:00]} Nf6 {[%emt 0:00:36]} 4. cxd5 {[%emt 0:
00:00]} exd5 {[%emt 0:00:32]} 5. Bg5 {[%emt 0:00:00]} c6 {[%emt 0:00:59]} 6. e3
{[%emt 0:00:00]} Bd6 {[%emt 0:02:05]} 7. Bd3 {[%emt 0:00:00]} O-O {[%emt 0:00:
00]} 8. Nge2 {[%emt 0:00:00] D35: Queen's Gambit Declined: Exchange Variation.}
Re8 {[%emt 0:01:29]} 9. Qc2 {[%emt 0:00:00][%cal Yd3h7] Black should prevent
Bxh7+!} h6 {[%emt 0:00:13]} 10. Bh4 {[%emt 0:00:00] White has an edge.} a5 {
[%emt 0:00:48]} 11. h3 {[%emt 0:00:00]} Na6 {[%emt 0:01:47]} 12. a3 {[%emt 0:
00:00] Prevents Nb4.} Nc7 {[%emt 0:00:29]} 13. O-O {[%emt 0:00:00]} Ne6 {
[%emt 0:00:41]} 14. Rae1 $5 {[%emt 0:00:00] Recently 14.f4 got a lot of
attention. Exploring less charted territory.} Ng5 {[%emt 0:21:17]} (14... Be7
$11) 15. f4 $14 {[%emt 0:00:00] [#]} Nge4 $146 {[%emt 0:20:21]} (15... Ne6 $142
) ({Predecessor:} 15... Ne6 16. Ng3 Bf8 17. f5 Ng5 18. Bxg5 hxg5 19. Qd1 Bd6
20. Nh5 Bc7 21. Nxf6+ Qxf6 {1-0 (50) Wu,R (2136)-Liang,J (2296) San Francisco
2019}) 16. Bxe4 $16 {[%emt 0:00:00]} dxe4 {[%emt 0:03:26] [#]} 17. Nxe4 {
[%emt 0:00:00]} Bf5 $14 {[%emt 0:09:51]} 18. Bxf6 {[%emt 0:00:00]} Bxe4 {
[%emt 0:03:28]} 19. Qxe4 {[%emt 0:00:00]} ({Much weaker is} 19. Bxd8 Bxc2 20.
Bb6 Rxe3 $17) 19... Qxf6 {[%emt 0:01:15]} 20. Qf3 {[%emt 0:00:00]} Qe6 {
[%emt 0:02:56] Prevents e4.} 21. Ng3 {[%emt 0:00:00] Black is now going
downhill.} Qd5 {[%emt 0:06:18]} 22. Qxd5 {[%emt 0:00:00]} cxd5 {[%emt 0:00:03]}
23. Kf2 {[%emt 0:00:00]} g6 {[%emt 0:03:19]} 24. Ne2 {[%emt 0:00:00]} a4 {
[%emt 0:05:42]} 25. Nc3 {[%emt 0:00:00]} Ra5 {[%emt 0:00:07]} 26. Ke2 {[%emt 0:
00:00]} f5 {[%emt 0:02:57]} 27. Kd3 {[%emt 0:00:00]} Kf7 {[%emt 0:00:09]} 28.
g4 {[%emt 0:00:00]} Be7 {[%emt 0:02:28]} 29. Re2 {[%emt 0:00:00]} Rd8 {[%emt 0:
00:00]} 30. Rg1 {[%emt 0:00:00]} Rd6 {[%emt 0:01:48]} (30... fxg4 $142 31. hxg4
(31. Rxg4 Rd6 $16) 31... Kg7) 31. gxf5 $18 {[%emt 0:00:00]} gxf5 {[%emt 0:00:
00]} 32. Reg2 {[%emt 0:00:00] [#] Threatens to win with Rg7+.} Bf8 {[%emt 0:00:
00] Prevents Rg7+.} 33. h4 {[%emt 0:00:00][%cal Yh3h4,Yh4h5]} Rb6 {[%emt 0:02:
50]} 34. Kc2 {[%emt 0:00:00]} Re6 {[%emt 0:00:36]} 35. Rg3 {[%emt 0:00:00]} Re8
{[%emt 0:00:47]} 36. h5 {[%emt 0:00:00]} Re6 {[%emt 0:00:08]} 37. R1g2 {
[%emt 0:00:00] White is clearly winning.} Re8 {[%emt 0:00:50]} 38. Kd3 {
[%emt 0:00:00]} Rd8 {[%emt 0:00:37]} 39. Rg6 {[%emt 0:00:00]} Rd7 {[%emt 0:00:
00]} 40. Rb6 {[%emt 0:00:00]} Be7 {[%emt 0:00:34]} 41. Rxh6 {[%emt 0:04:32]
Strongly threatening Rh7+.} Bf6 {[%emt 0:09:36]} 42. Rh7+ {[%emt 0:00:00]} Ke6
{[%emt 0:00:07]} 43. Rxd7 {[%emt 0:00:00]} Kxd7 {[%emt 0:00:04]} 44. h6 {
[%emt 0:00:00]} Ra6 {[%emt 0:09:42]} 45. h7 {[%emt 0:00:00]} Rb6 {[%emt 0:00:
00]} 46. Rg6 {[%emt 0:00:00] Weighted Error Value: White=0.03 (flawless) /
Black=0.25 (precise)} (46. Nxd5 $142 Rb3+ 47. Kc2 Bxd4 48. exd4) 1-0

[Event "44th Chess Olympiad Open 2022"]
[Site "Chennai"]
[Date "2022.07.29"]
[Round "1.19"]
[White "Kantor, Gergely"]
[Black "De Silva, L M S T.."]
[Result "1/2-1/2"]
[WhiteElo "2582"]
[BlackElo "2212"]
[Annotator "TA"]
[PlyCount "62"]
[EventDate "2022.??.??"]
[TimeControl "60"]

{[%evp 10,62,7,8,41,27,25,22,30,19,12,16,10,12,11,13,8,0,0,0,-2,-46,-8,-15,0,0,
0,0,0,0,0,0,0,0,0,0,0,0,0,0,0,0,0,0,0,0,0,0,0,0,0,0,0,0,0]} 1. d4 {[%emt 0:00:
00]} Nf6 {[%emt 0:00:17]} 2. c4 {[%emt 0:00:06]} e6 {[%emt 0:00:06]} 3. Nf3 {
[%emt 0:00:02]} d5 {[%emt 0:00:42]} 4. Nc3 {[%emt 0:00:11]} Bb4 {[%emt 0:00:25]
} 5. Qa4+ {[%emt 0:00:06]} Nc6 {[%emt 0:00:08]} 6. e3 {[%emt 0:00:06]} dxc4 {
[%emt 0:03:16] D38: Queen's Gambit Declined: Ragozin Defence (4 Nf3 Bb4).} 7.
Bxc4 {[%emt 0:08:21]} O-O {[%emt 0:01:42]} 8. O-O {[%emt 0:00:33]} Bd6 {
[%emt 0:03:17]} 9. Rd1 {[%emt 0:02:57]} Bd7 {[%emt 0:08:32][%cal Yc6d4,Yc8d7,
Yd7c6,Yc6d5,Yd5c4] [#] Strongly threatening ...Nxd4!} 10. Qc2 {[%emt 0:00:47]}
e5 {[%emt 0:06:51] [#]} 11. dxe5 $146 {[%emt 0:06:55]} ({Predecessor:} 11. h3
a6 12. a3 Qc8 13. dxe5 Nxe5 14. Nxe5 Bxe5 15. e4 Bxh3 16. Nd5 Qg4 17. Bf1 Nxe4
{1-0 (45) Nowak,L (2270)-Koziol,K (2292) Dzwirzyno 2019}) 11... Nxe5 {[%emt 0:
01:33]} 12. Nxe5 {[%emt 0:00:15]} Bxe5 {[%emt 0:00:12]} 13. e4 {[%emt 0:00:43]}
Qe7 {[%emt 0:10:35]} 14. Bg5 {[%emt 0:04:27]} Bc6 {[%emt 0:00:00][%cal Ye5h2]}
15. Re1 {[%emt 0:54:22][%cal Yd1e1,Ye1e5,Ye5c5,Yc5c7]} Qc5 {[%emt 0:17:37]} (
15... Bxh2+ $5 16. Kh1 (16. Kxh2 Ng4+ 17. Kg1 Qxg5 $17) 16... Be5 $17) 16. Nd5
{[%emt 0:02:55] The position is equal.} Nxd5 {[%emt 0:01:03]} (16... Bxd5 {
is more complex.} 17. exd5 Rae8 18. Be3 Bd4) 17. exd5 {[%emt 0:00:12]} Bxd5 {
[%emt 0:00:44]} 18. Rxe5 {[%emt 0:00:56]} Qxc4 {[%emt 0:00:17]} 19. Qxc4 {
[%emt 0:05:10]} Bxc4 {[%emt 0:00:02]} 20. Rc5 {[%emt 0:00:11][%csl Yc4,Yc7]}
Be6 {[%emt 0:02:11]} 21. Rxc7 {[%emt 0:00:08]} f6 {[%emt 0:00:10]} 22. Be3 {
[%emt 0:01:03]} Rf7 {[%emt 0:00:41]} 23. Rc3 {[%emt 0:00:46]} Rd7 {[%emt 0:05:
37]} 24. h3 {[%emt 0:00:35]} Bd5 {[%emt 0:00:00]} 25. Rd1 {[%emt 0:00:45]} Bc6
{[%emt 0:03:05]} 26. Rxd7 {[%emt 0:01:32]} Bxd7 $11 {[%emt 0:00:02] KRB-KRB}
27. Rc7 {[%emt 0:00:25]} Bc6 {[%emt 0:01:03]} 28. g4 {[%emt 0:02:18]} h6 {
[%emt 0:01:04]} 29. f4 {[%emt 0:02:46]} a6 {[%emt 0:05:38]} 30. Kf2 {[%emt 0:
01:39]} Rf8 {[%emt 0:01:43]} 31. a3 {[%emt 0:00:00]} Rf7 {[%emt 0:00:13]
Weighted Error Value: White=0.03 (flawless) / Black=0.05 (flawless)} 1/2-1/2

[Event "44th Chess Olympiad Open 2022"]
[Site "Chennai"]
[Date "2022.07.29"]
[Round "1.19"]
[White "Liyanage, Ranindu Dilshan"]
[Black "Banusz, Tamas"]
[Result "1/2-1/2"]
[WhiteElo "2286"]
[BlackElo "2611"]
[Annotator "TA"]
[PlyCount "88"]
[EventDate "2022.??.??"]
[TimeControl "60"]

{[%evp 17,88,0,14,0,20,18,15,27,21,11,4,0,0,-11,-16,-14,-20,-15,-14,-15,0,-14,
-1,-33,0,-20,6,0,14,0,16,16,15,0,0,0,0,1,86,74,97,58,52,48,54,62,92,33,40,-84,
-87,-75,-68,-62,-59,-51,-70,-77,-68,-97,-58,-90,-93,-94,-81,-81,-81,-81,-81,
-94,-43,-43,-44]} 1. e4 {[%emt 0:00:16]} c5 {[%emt 0:00:07]} 2. Nf3 {[%emt 0:
00:00]} Nc6 {[%emt 0:00:05]} 3. Bb5 {[%emt 0:00:27]} g6 {[%emt 0:00:11]} 4. O-O
{[%emt 0:00:17]} Bg7 {[%emt 0:00:12]} 5. Re1 {[%emt 0:00:22]} Nf6 {[%emt 0:00:
00]} 6. c3 {[%emt 0:00:08]} O-O {[%emt 0:00:21]} 7. d4 {[%emt 0:00:25]} d5 {
[%emt 0:00:19]} 8. e5 {[%emt 0:00:17]} Ne4 {[%emt 0:00:09]} 9. Bxc6 {[%emt 0:
00:00]} bxc6 {[%emt 0:00:05]} 10. Be3 $1 {[%emt 0:00:11] is now more promising
than 10.Nbd2. B31: Sicilian: 2...Nc6 3 Bb5 g6.} Rb8 {[%emt 0:00:08]} 11. Qc1 {
[%emt 0:02:12]} cxd4 {[%emt 0:01:22]} 12. cxd4 {[%emt 0:00:37] The position is
equal.} Bf5 {[%emt 0:02:48]} 13. Nc3 {[%emt 0:07:48]} f6 {[%emt 0:00:00]} 14.
exf6 {[%emt 0:01:36]} exf6 {[%emt 0:01:01]} 15. Bf4 {[%emt 0:10:51]} Rc8 {
[%emt 0:07:46] [#]} 16. Nd2 $146 {[%emt 0:12:51][%cal Rc3e4]} ({Predecessor:} 
16. Na4 g5 17. Be3 Qe8 18. Nd2 Nxd2 19. Bxd2 Qf7 20. Bb4 Rfe8 21. Qc3 h5 22.
Rxe8+ Rxe8 23. Qxc6 {½-½ (59) Vagman,R (2247)-Dubnevych,M (2065) Terme Catez
2022}) 16... g5 {[%emt 0:03:58]} 17. Ncxe4 {[%emt 0:20:45]} dxe4 {[%emt 0:01:
30]} 18. Qc4+ {[%emt 0:00:23]} Kh8 {[%emt 0:04:54]} 19. Bg3 {[%emt 0:02:21]}
Bg6 {[%emt 0:05:44]} 20. Qc5 {[%emt 0:05:36]} (20. Nxe4 $2 Bxe4 21. Rxe4 f5 $19
) 20... Rf7 {[%emt 0:04:42]} 21. Rad1 {[%emt 0:09:53]} (21. Nxe4 $2 Bxe4 22.
Rxe4 f5 $19) 21... Bf8 {[%emt 0:07:12]} 22. Qc3 {[%emt 0:00:52]} Qd5 {[%emt 0:
05:25]} 23. Nc4 {[%emt 0:02:33]} Rb7 {[%emt 0:03:44]} 24. a3 {[%emt 0:06:16]}
Bf7 {[%emt 0:04:33]} 25. Nd2 {[%emt 0:04:04][%cal Yc4d2,Yd2f1,Yf1e3]} Re8 {
[%emt 0:04:57]} 26. b4 {[%emt 0:01:20]} Rd7 {[%emt 0:00:00]} 27. Nf1 {[%emt 0:
01:57]} Red8 {[%emt 0:08:30]} (27... Qc4 $11 28. Qxc4 Bxc4) 28. Ne3 $16 {
[%emt 0:01:18]} Qe6 {[%emt 0:00:24]} 29. Rc1 {[%emt 0:03:41]} Rxd4 {[%emt 0:02:
21]} 30. Qxc6 {[%emt 0:00:05]} Kg8 {[%emt 0:02:24]} 31. h4 {[%emt 0:01:38]} h6
{[%emt 0:01:06][%cal Yh7h6,Yh6g5,Yg5g4,Yg4f3]} 32. Qxe6 {[%emt 0:02:38]} (32.
Qa4 $16) 32... Bxe6 $14 {[%emt 0:00:02]} 33. Nc2 {[%emt 0:01:36]} (33. Rc6 $14
{stays ahead.} Kf7 34. Ra6) 33... Rc4 $17 {[%emt 0:01:13]} 34. Ne3 {[%emt 0:00:
49]} Rxc1 {[%emt 0:02:50]} 35. Rxc1 {[%emt 0:00:01]} f5 {[%emt 0:00:07][%cal
Yf6f5,Yf5f4] [#] Strongly threatening ...f4.} 36. hxg5 {[%emt 0:00:19]} (36.
Rc6 Bd7 37. Bc7 Rc8 $17) 36... hxg5 {[%emt 0:00:01] aiming for ...f4.} 37. Be5
{[%emt 0:01:11]} f4 {[%emt 0:00:57]} 38. Bf6 {[%emt 0:00:40]} Rd3 {[%emt 0:01:
57]} 39. Nc2 {[%emt 0:00:00]} g4 {[%emt 0:03:47]} 40. Nd4 {[%emt 0:00:36]} Bd5
{[%emt 0:01:59]} 41. Ne2 {[%emt 0:09:06] [#]} Bh6 {[%emt 0:02:11] Hoping for ..
.f3.} ({Of course not} 41... Rxa3 $6 42. Nxf4 Ba2 43. Rc8 $11) (41... Kf7 42.
Be5 $11) 42. Be5 {[%emt 0:02:20]} f3 {[%emt 0:03:49]} ({But not} 42... Rxa3 43.
Nxf4 Bxf4 44. Bxf4 $14) 43. Nf4 {[%emt 0:00:12]} Rd2 {[%emt 0:01:48]} (43...
Bxf4 $17 44. Bxf4 Rxa3) 44. gxf3 $15 {[%emt 0:03:40]} gxf3 {[%emt 0:03:49]
Weighted Error Value: White=0.14 (very precise) /Black=0.11 (very precise)} ({
Reject} 44... exf3 45. Rc8+ Kf7 46. Rc7+ Ke8 47. Nxd5 Rxd5 48. Bg3 $11) 1/2-1/2